[Event "*** Titled Tuesday Blitz"]
[Site "Chess.com"]
[Date "2019.06.04"]
[Round "5"]
[White "iturrizaga"]
[Black "mikhaillushenkov"]
[Result "1-0"]
[WhiteElo "2927"]
[BlackElo "2722"]
[TimeControl "180+2"]
[EndTime "14:05:58 PDT"]
[Termination "iturrizaga won by checkmate"]

1. c4 {[%clk 0:03:01.9]} 1... e6 {[%clk 0:03:00.7]} 2. g3 {[%clk 0:03:02.5]}
2... d5 {[%clk 0:03:01.2]} 3. Bg2 {[%clk 0:03:04.4]} 3... Nf6 {[%clk 0:02:53.3]}
4. Nf3 {[%clk 0:03:05.2]} 4... c6 {[%clk 0:02:48.7]} 5. b3 {[%clk 0:03:05.6]}
5... Nbd7 {[%clk 0:02:46.1]} 6. Bb2 {[%clk 0:03:06.5]} 6... Bd6 {[%clk
0:02:45.9]} 7. d4 {[%clk 0:02:54.1]} 7... O-O {[%clk 0:02:46.3]} 8. O-O {[%clk
0:02:52.5]} 8... Ne4 {[%clk 0:02:46.9]} 9. Nbd2 {[%clk 0:02:50.1]} 9... f5
{[%clk 0:02:47.6]} 10. Ne5 {[%clk 0:02:49.5]} 10... Nxe5 {[%clk 0:02:39.5]} 11.
dxe5 {[%clk 0:02:51.4]} 11... Bc5 {[%clk 0:02:40.7]} 12. Qc2 {[%clk 0:02:40.9]}
12... Nxd2 {[%clk 0:02:01.4]} 13. Qxd2 {[%clk 0:02:39.3]} 13... Qe7 {[%clk
0:01:54.9]} 14. a3 {[%clk 0:02:35.5]} 14... Bd7 {[%clk 0:01:54.6]} 15. b4 {[%clk
0:02:33.3]} 15... Bb6 {[%clk 0:01:55.4]} 16. c5 {[%clk 0:02:33.8]} 16... Bc7
{[%clk 0:01:56.1]} 17. f4 {[%clk 0:02:34.8]} 17... Be8 {[%clk 0:01:54.1]} 18.
Bf3 {[%clk 0:02:33.3]} 18... h6 {[%clk 0:01:53.3]} 19. h4 {[%clk 0:02:31.7]}
19... g6 {[%clk 0:01:45.2]} 20. Bd4 {[%clk 0:02:29.4]} 20... Rf7 {[%clk
0:01:42.2]} 21. Kf2 {[%clk 0:02:29.1]} 21... Rg7 {[%clk 0:01:42.9]} 22. Rfb1
{[%clk 0:02:26.2]} 22... g5 {[%clk 0:01:41.9]} 23. hxg5 {[%clk 0:02:28.1]} 23...
hxg5 {[%clk 0:01:43.4]} 24. Rh1 {[%clk 0:02:29.7]} 24... g4 {[%clk 0:01:15]} 25.
Bg2 {[%clk 0:02:27.5]} 25... Rh7 {[%clk 0:01:16.3]} 26. Rhb1 {[%clk 0:01:56.5]}
26... Bd7 {[%clk 0:01:14.1]} 27. a4 {[%clk 0:01:56.9]} 27... a6 {[%clk
0:01:05.9]} 28. b5 {[%clk 0:01:54.4]} 28... axb5 {[%clk 0:01:06.9]} 29. axb5
{[%clk 0:01:55]} 29... Rxa1 {[%clk 0:01:08.5]} 30. Rxa1 {[%clk 0:01:56.9]} 30...
cxb5 {[%clk 0:01:10.1]} 31. Ra8+ {[%clk 0:01:54.4]} 31... Kf7 {[%clk 0:01:10.8]}
32. Qa2 {[%clk 0:01:12.7]} 32... Bc6 {[%clk 0:01:02.9]} 33. Rc8 {[%clk 0:01:13]}
33... Kg6 {[%clk 0:00:42.5]} 34. Qa8 {[%clk 0:01:08.8]} 34... b4 {[%clk
0:00:39.5]} 35. Rxc7 {[%clk 0:00:49.4]} 35... Qxc7 {[%clk 0:00:40.1]} 36. Qg8+
{[%clk 0:00:50.1]} 36... Kh5 {[%clk 0:00:35.1]} 37. Qg5# {[%clk 0:00:50.5]} 1-0

[Event "*** Titled Tuesday Blitz"]
[Site "Chess.com"]
[Date "2019.06.04"]
[Round "5"]
[White "Oleg_Papayan"]
[Black "Koksik_13"]
[Result "1-0"]
[WhiteElo "2556"]
[BlackElo "2626"]
[TimeControl "180+2"]
[EndTime "14:05:59 PDT"]
[Termination "Oleg_Papayan won on time"]

1. e4 {[%clk 0:03:01.9]} 1... e6 {[%clk 0:03:01.1]} 2. d4 {[%clk 0:03:00.5]}
2... d5 {[%clk 0:03:02.5]} 3. Nc3 {[%clk 0:03:01.8]} 3... Bb4 {[%clk 0:03:02.9]}
4. exd5 {[%clk 0:03:02.5]} 4... exd5 {[%clk 0:03:03.4]} 5. Bd3 {[%clk
0:03:03.8]} 5... Nc6 {[%clk 0:03:04.3]} 6. a3 {[%clk 0:03:04.2]} 6... Bxc3+
{[%clk 0:03:05]} 7. bxc3 {[%clk 0:03:05.2]} 7... Nge7 {[%clk 0:03:06.5]} 8. Ne2
{[%clk 0:03:05]} 8... Bf5 {[%clk 0:03:07.2]} 9. Ng3 {[%clk 0:03:04.9]} 9... Bxd3
{[%clk 0:03:08]} 10. Qxd3 {[%clk 0:03:05.4]} 10... O-O {[%clk 0:03:08.9]} 11.
O-O {[%clk 0:03:06.7]} 11... Re8 {[%clk 0:03:01.8]} 12. Re1 {[%clk 0:03:07.7]}
12... Ng6 {[%clk 0:02:59.5]} 13. Bd2 {[%clk 0:03:04.5]} 13... Qd7 {[%clk
0:02:59.1]} 14. f4 {[%clk 0:03:02.7]} 14... Rxe1+ {[%clk 0:02:59.5]} 15. Rxe1
{[%clk 0:03:03.2]} 15... Re8 {[%clk 0:03:01.4]} 16. Rf1 {[%clk 0:02:56.7]} 16...
Nf8 {[%clk 0:02:54.6]} 17. f5 {[%clk 0:02:57.5]} 17... f6 {[%clk 0:02:49.4]} 18.
c4 {[%clk 0:02:56]} 18... Kh8 {[%clk 0:02:38.4]} 19. c3 {[%clk 0:02:56.1]} 19...
Qf7 {[%clk 0:02:32.5]} 20. c5 {[%clk 0:02:53.9]} 20... Nd7 {[%clk 0:02:30]} 21.
Bf4 {[%clk 0:02:45.3]} 21... b6 {[%clk 0:02:25.4]} 22. Qb5 {[%clk 0:02:39.8]}
22... Ndb8 {[%clk 0:02:25.6]} 23. cxb6 {[%clk 0:02:38.5]} 23... axb6 {[%clk
0:02:19]} 24. a4 {[%clk 0:02:22.4]} 24... h6 {[%clk 0:02:12.2]} 25. h3 {[%clk
0:02:21.4]} 25... Kh7 {[%clk 0:02:12.2]} 26. Kh2 {[%clk 0:02:21.7]} 26... Qd7
{[%clk 0:02:07.5]} 27. Rf3 {[%clk 0:02:09.5]} 27... Re1 {[%clk 0:02:05.5]} 28.
Nf1 {[%clk 0:02:03]} 28... Qe7 {[%clk 0:01:18.9]} 29. Qxd5 {[%clk 0:01:59.3]}
29... Na5 {[%clk 0:01:03.6]} 30. Re3 {[%clk 0:01:58.1]} 30... Rxe3 {[%clk
0:01:03.6]} 31. Nxe3 {[%clk 0:02:00]} 31... Nd7 {[%clk 0:00:27.4]} 32. Qe6
{[%clk 0:01:58.8]} 32... Qd8 {[%clk 0:00:22.2]} 33. Nd5 {[%clk 0:01:58.9]} 33...
Nf8 {[%clk 0:00:23.1]} 34. Qf7 {[%clk 0:01:59.9]} 34... c6 {[%clk 0:00:12.7]}
35. Ne7 {[%clk 0:02:01.1]} 35... Nd7 {[%clk 0:00:13.8]} 36. Bxh6 {[%clk
0:01:51.9]} 36... Qf8 {[%clk 0:00:07.8]} 37. Qxf8 {[%clk 0:01:38.3]} 37... Nxf8
{[%clk 0:00:08.6]} 38. Bf4 {[%clk 0:01:40.2]} 38... Nd7 {[%clk 0:00:04.4]} 39.
Bc7 {[%clk 0:01:35.3]} 1-0

[Event "*** Titled Tuesday Blitz"]
[Site "Chess.com"]
[Date "2019.06.04"]
[Round "5"]
[White "Bryakin_Mikhail"]
[Black "gena217"]
[Result "0-1"]
[WhiteElo "2725"]
[BlackElo "2906"]
[TimeControl "180+2"]
[EndTime "14:06:08 PDT"]
[Termination "gena217 won by resignation"]

1. d4 {[%clk 0:02:57.7]} 1... Nf6 {[%clk 0:03:00]} 2. c4 {[%clk 0:02:59]} 2...
e6 {[%clk 0:03:00.6]} 3. g3 {[%clk 0:03:00.4]} 3... c5 {[%clk 0:03:01.6]} 4. d5
{[%clk 0:03:01.3]} 4... exd5 {[%clk 0:03:03]} 5. cxd5 {[%clk 0:03:03.2]} 5... d6
{[%clk 0:03:04.9]} 6. Nc3 {[%clk 0:03:04.2]} 6... g6 {[%clk 0:03:06]} 7. Bg2
{[%clk 0:03:05.7]} 7... Bg7 {[%clk 0:03:07.9]} 8. Nf3 {[%clk 0:03:07.3]} 8...
O-O {[%clk 0:03:09.8]} 9. O-O {[%clk 0:03:08.9]} 9... Re8 {[%clk 0:03:10.4]} 10.
Bf4 {[%clk 0:03:10.3]} 10... Ne4 {[%clk 0:03:11]} 11. Nxe4 {[%clk 0:03:11.2]}
11... Rxe4 {[%clk 0:03:12.9]} 12. Nd2 {[%clk 0:03:12.9]} 12... Rxf4 {[%clk
0:03:05.4]} 13. gxf4 {[%clk 0:03:14.8]} 13... Bxb2 {[%clk 0:03:07]} 14. Rb1
{[%clk 0:03:16]} 14... Bg7 {[%clk 0:03:06.3]} 15. Qb3 {[%clk 0:03:11.4]} 15...
Nd7 {[%clk 0:02:51.9]} 16. Nc4 {[%clk 0:02:59.2]} 16... Nb6 {[%clk 0:02:52.4]}
17. Nxb6 {[%clk 0:02:57.9]} 17... axb6 {[%clk 0:02:51]} 18. Qxb6 {[%clk
0:02:59.3]} 18... Qe7 {[%clk 0:02:26.8]} 19. e4 {[%clk 0:02:37.2]} 19... Bh6
{[%clk 0:02:19.5]} 20. e5 {[%clk 0:02:31]} 20... Bxf4 {[%clk 0:02:19.3]} 21.
Qxd6 {[%clk 0:02:32.3]} 21... Qh4 {[%clk 0:02:03.9]} 22. h3 {[%clk 0:02:18.5]}
22... Bxh3 {[%clk 0:02:04.3]} 23. Rb3 {[%clk 0:01:40.3]} 23... Bxg2 {[%clk
0:01:32.6]} 24. Kxg2 {[%clk 0:01:42.2]} 24... Qh2+ {[%clk 0:01:34]} 25. Kf3
{[%clk 0:01:42.7]} 25... Bxe5 {[%clk 0:01:35.6]} 26. Qd7 {[%clk 0:01:30]} 26...
Qf4+ {[%clk 0:01:34.1]} 27. Kg2 {[%clk 0:01:27.7]} 27... Qh2+ {[%clk 0:01:29.6]}
28. Kf3 {[%clk 0:01:28.6]} 28... Ra6 {[%clk 0:00:41.7]} 29. Qg4 {[%clk
0:01:13.8]} 29... Rf6+ {[%clk 0:00:40.6]} 30. Ke2 {[%clk 0:01:14.6]} 30... Rf4
{[%clk 0:00:40.9]} 31. Qc8+ {[%clk 0:01:04.2]} 31... Kg7 {[%clk 0:00:41.5]} 32.
Qxc5 {[%clk 0:00:52.2]} 32... Re4+ {[%clk 0:00:36]} 33. Re3 {[%clk 0:00:51.8]}
33... Bd4 {[%clk 0:00:32.5]} 34. Rxe4 {[%clk 0:00:34.1]} 34... Bxc5 {[%clk
0:00:32.3]} 35. Kd3 {[%clk 0:00:33.1]} 35... Qd6 {[%clk 0:00:31.4]} 36. Kc4
{[%clk 0:00:34.1]} 36... b5+ {[%clk 0:00:29]} 37. Kxb5 {[%clk 0:00:35.2]} 37...
Qxd5 {[%clk 0:00:30.5]} 38. Rc4 {[%clk 0:00:36.7]} 38... Bd6+ {[%clk 0:00:30.9]}
0-1

[Event "*** Titled Tuesday Blitz"]
[Site "Chess.com"]
[Date "2019.06.04"]
[Round "5"]
[White "Tacticalon"]
[Black "severomorskij"]
[Result "0-1"]
[WhiteElo "2704"]
[BlackElo "2792"]
[TimeControl "180+2"]
[EndTime "14:06:13 PDT"]
[Termination "severomorskij won by resignation"]

1. d4 {[%clk 0:03:01.4]} 1... Nf6 {[%clk 0:03:00.3]} 2. c4 {[%clk 0:03:01]} 2...
e6 {[%clk 0:03:01.1]} 3. Nc3 {[%clk 0:03:02.2]} 3... Bb4 {[%clk 0:03:01.7]} 4.
e3 {[%clk 0:03:03.2]} 4... b6 {[%clk 0:03:02.3]} 5. Ne2 {[%clk 0:03:03.6]} 5...
Ne4 {[%clk 0:03:03.2]} 6. Qc2 {[%clk 0:03:03.7]} 6... Bb7 {[%clk 0:03:04.3]} 7.
a3 {[%clk 0:03:04]} 7... Bxc3+ {[%clk 0:03:05.6]} 8. Nxc3 {[%clk 0:03:05.8]}
8... Nxc3 {[%clk 0:03:06.7]} 9. Qxc3 {[%clk 0:03:07.7]} 9... O-O {[%clk
0:03:07.6]} 10. b4 {[%clk 0:03:07.9]} 10... d6 {[%clk 0:03:07.1]} 11. Bb2 {[%clk
0:03:08.7]} 11... Qg5 {[%clk 0:03:01.5]} 12. f3 {[%clk 0:02:40.5]} 12... Qh4+
{[%clk 0:03:00.6]} 13. g3 {[%clk 0:02:41]} 13... Qh5 {[%clk 0:03:01.5]} 14. e4
{[%clk 0:02:33.4]} 14... f5 {[%clk 0:02:56.5]} 15. d5 {[%clk 0:02:33]} 15... e5
{[%clk 0:02:54]} 16. O-O-O {[%clk 0:02:28.1]} 16... fxe4 {[%clk 0:02:45.5]} 17.
fxe4 {[%clk 0:02:15.5]} 17... Nd7 {[%clk 0:02:45.9]} 18. Qc2 {[%clk 0:02:04.5]}
18... Rf7 {[%clk 0:02:29.4]} 19. h4 {[%clk 0:01:55.6]} 19... Raf8 {[%clk
0:02:20.6]} 20. Bh3 {[%clk 0:01:55.7]} 20... Kh8 {[%clk 0:02:21.3]} 21. Be6
{[%clk 0:01:50.3]} 21... Rf2 {[%clk 0:02:16.9]} 22. Rd2 {[%clk 0:01:51.1]} 22...
Rf1+ {[%clk 0:01:59.9]} 23. Rxf1 {[%clk 0:01:50.6]} 23... Rxf1+ {[%clk
0:02:00.2]} 24. Rd1 {[%clk 0:01:51.8]} 24... Rxd1+ {[%clk 0:01:58.2]} 25. Qxd1
{[%clk 0:01:53.7]} 25... Qxd1+ {[%clk 0:01:59.6]} 26. Kxd1 {[%clk 0:01:55.6]}
26... Nf6 {[%clk 0:02:01.1]} 27. Ke2 {[%clk 0:01:41.6]} 27... Nxe4 {[%clk
0:02:00.9]} 28. g4 {[%clk 0:01:43]} 28... g6 {[%clk 0:01:45]} 29. Ke3 {[%clk
0:01:40.5]} 29... Nf6 {[%clk 0:01:44.6]} 30. g5 {[%clk 0:01:38.6]} 30... Nh5
{[%clk 0:01:42.2]} 31. c5 {[%clk 0:01:39.5]} 31... Nf4 {[%clk 0:01:24.9]} 32.
Bd7 {[%clk 0:00:45.2]} 32... Bxd5 {[%clk 0:01:15.8]} 33. a4 {[%clk 0:00:43.1]}
33... Kg7 {[%clk 0:01:12.4]} 34. cxb6 {[%clk 0:00:40.6]} 34... cxb6 {[%clk
0:01:12.6]} 35. a5 {[%clk 0:00:41.7]} 35... Kf7 {[%clk 0:01:06.9]} 36. axb6
{[%clk 0:00:42.1]} 36... axb6 {[%clk 0:01:07.6]} 37. b5 {[%clk 0:00:43.5]} 37...
Ke7 {[%clk 0:01:05.7]} 38. Bc6 {[%clk 0:00:44.5]} 38... Ke6 {[%clk 0:00:57.9]}
39. Ba3 {[%clk 0:00:39.6]} 39... Ng2+ {[%clk 0:00:44.7]} 0-1

[Event "*** Titled Tuesday Blitz"]
[Site "Chess.com"]
[Date "2019.06.04"]
[Round "5"]
[White "matiss90"]
[Black "Caterpiller35"]
[Result "0-1"]
[WhiteElo "2445"]
[BlackElo "2429"]
[TimeControl "180+2"]
[EndTime "14:06:23 PDT"]
[Termination "Caterpiller35 won by checkmate"]

1. e4 {[%clk 0:03:01.9]} 1... c5 {[%clk 0:03:00.1]} 2. Nf3 {[%clk 0:03:02.7]}
2... Nc6 {[%clk 0:02:59.9]} 3. d3 {[%clk 0:03:00.8]} 3... e6 {[%clk 0:02:54.2]}
4. Nbd2 {[%clk 0:03:01.6]} 4... d5 {[%clk 0:02:49.8]} 5. g3 {[%clk 0:03:02.8]}
5... Nf6 {[%clk 0:02:38.6]} 6. Bg2 {[%clk 0:03:03.5]} 6... Be7 {[%clk
0:02:39.6]} 7. O-O {[%clk 0:03:04.3]} 7... Qc7 {[%clk 0:02:40.6]} 8. c3 {[%clk
0:03:05.4]} 8... O-O {[%clk 0:02:19.3]} 9. a3 {[%clk 0:03:05.2]} 9... dxe4
{[%clk 0:02:15]} 10. dxe4 {[%clk 0:03:07.1]} 10... e5 {[%clk 0:02:12]} 11. b4
{[%clk 0:03:02.2]} 11... Rd8 {[%clk 0:02:07.2]} 12. Qe2 {[%clk 0:02:54.7]} 12...
a6 {[%clk 0:02:07]} 13. Bb2 {[%clk 0:02:49]} 13... Be6 {[%clk 0:02:01.3]} 14.
Rac1 {[%clk 0:02:49.1]} 14... h6 {[%clk 0:01:55.4]} 15. Nh4 {[%clk 0:02:49.9]}
15... b5 {[%clk 0:01:49.1]} 16. c4 {[%clk 0:02:27.8]} 16... cxb4 {[%clk
0:01:42.3]} 17. cxb5 {[%clk 0:02:23.6]} 17... axb5 {[%clk 0:01:37.5]} 18. Nf5
{[%clk 0:02:11.7]} 18... Bf8 {[%clk 0:01:34.3]} 19. axb4 {[%clk 0:02:08.4]}
19... Ra2 {[%clk 0:01:30.1]} 20. Nf3 {[%clk 0:02:00.6]} 20... Qb7 {[%clk
0:01:22.7]} 21. Qc2 {[%clk 0:01:40.1]} 21... Nxb4 {[%clk 0:01:19.2]} 22. Qb1
{[%clk 0:01:41.1]} 22... Nxe4 {[%clk 0:01:07.7]} 23. Nxh6+ {[%clk 0:01:24.1]}
23... gxh6 {[%clk 0:01:06.7]} 24. Nxe5 {[%clk 0:01:25]} 24... f5 {[%clk
0:00:59.5]} 25. Ng6 {[%clk 0:01:06.9]} 25... Nd3 {[%clk 0:00:43.2]} 26. Bf6
{[%clk 0:01:00.4]} 26... Nxc1 {[%clk 0:00:32.9]} 27. Bxd8 {[%clk 0:00:43]} 27...
Ne2+ {[%clk 0:00:32.9]} 28. Kh1 {[%clk 0:00:44]} 28... Bd5 {[%clk 0:00:34.2]}
29. Nh4 {[%clk 0:00:39.1]} 29... N2c3 {[%clk 0:00:20]} 30. Qd3 {[%clk
0:00:32.4]} 30... Rxf2 {[%clk 0:00:16.2]} 31. Kg1 {[%clk 0:00:18.8]} 31... Ne2+
{[%clk 0:00:13.5]} 32. Kh1 {[%clk 0:00:14.4]} 32... Rxf1+ {[%clk 0:00:14.4]} 33.
Bxf1 {[%clk 0:00:15.5]} 33... Nf2# {[%clk 0:00:15.6]} 0-1

[Event "*** Titled Tuesday Blitz"]
[Site "Chess.com"]
[Date "2019.06.04"]
[Round "5"]
[White "orrbaverlekszarnyon"]
[Black "Caisachess"]
[Result "1-0"]
[WhiteElo "2238"]
[BlackElo "2416"]
[TimeControl "180+2"]
[EndTime "14:06:23 PDT"]
[Termination "orrbaverlekszarnyon won by resignation"]

1. e4 {[%clk 0:03:01.9]} 1... e5 {[%clk 0:03:00.8]} 2. Nf3 {[%clk 0:02:57.1]}
2... Nc6 {[%clk 0:03:01.9]} 3. Bc4 {[%clk 0:02:57.7]} 3... Bc5 {[%clk
0:03:02.4]} 4. b4 {[%clk 0:02:58.5]} 4... Bxb4 {[%clk 0:03:02.3]} 5. c3 {[%clk
0:02:57.7]} 5... Ba5 {[%clk 0:03:03.4]} 6. d4 {[%clk 0:02:59.1]} 6... Nge7
{[%clk 0:02:56.3]} 7. d5 {[%clk 0:02:54.5]} 7... Nb8 {[%clk 0:02:54.2]} 8. Nxe5
{[%clk 0:02:50]} 8... O-O {[%clk 0:02:54.9]} 9. d6 {[%clk 0:02:36.6]} 9... cxd6
{[%clk 0:02:54.2]} 10. Qxd6 {[%clk 0:02:37.5]} 10... Bc7 {[%clk 0:02:50.1]} 11.
Qd5 {[%clk 0:02:29.7]} 11... Bxe5 {[%clk 0:02:42.5]} 12. Qxe5 {[%clk 0:02:31.6]}
12... Nbc6 {[%clk 0:02:41.8]} 13. Qd6 {[%clk 0:02:28.9]} 13... Qa5 {[%clk
0:02:33.9]} 14. O-O {[%clk 0:02:27.9]} 14... Qe5 {[%clk 0:02:34.8]} 15. Bf4
{[%clk 0:02:23]} 15... Qxe4 {[%clk 0:02:32.2]} 16. Nd2 {[%clk 0:02:07.1]} 16...
Qg6 {[%clk 0:02:28.7]} 17. Rfe1 {[%clk 0:01:56.3]} 17... Nf5 {[%clk 0:02:22.5]}
18. Qc7 {[%clk 0:01:22.5]} 18... d6 {[%clk 0:02:00.5]} 19. Nf3 {[%clk
0:01:13.8]} 19... Be6 {[%clk 0:01:42.1]} 20. Bd3 {[%clk 0:00:55.9]} 20... Qg4
{[%clk 0:01:32.1]} 21. Bxf5 {[%clk 0:00:36.9]} 21... Qxf5 {[%clk 0:01:22.7]} 22.
Bxd6 {[%clk 0:00:37.5]} 22... Rfc8 {[%clk 0:01:15]} 23. Qxb7 {[%clk 0:00:36]}
23... Bd5 {[%clk 0:01:14.2]} 24. Re3 {[%clk 0:00:23.1]} 24... Nd8 {[%clk
0:00:53.6]} 25. Qb5 {[%clk 0:00:21.6]} 25... Ne6 {[%clk 0:00:52.6]} 26. Re5
{[%clk 0:00:18.4]} 26... Qc2 {[%clk 0:00:26.2]} 27. Qxd5 {[%clk 0:00:17.4]}
27... Rxc3 {[%clk 0:00:26.9]} 28. Qxa8+ {[%clk 0:00:17.3]} 28... Rc8 {[%clk
0:00:26.2]} 29. Qe4 {[%clk 0:00:17.7]} 29... Qc3 {[%clk 0:00:25.6]} 30. Rxe6
{[%clk 0:00:15.4]} 30... Qxa1+ {[%clk 0:00:26.1]} 31. Qe1 {[%clk 0:00:16.1]}
31... Qxe1+ {[%clk 0:00:22.7]} 32. Rxe1 {[%clk 0:00:18]} 32... h6 {[%clk
0:00:22.9]} 33. a4 {[%clk 0:00:18.7]} 33... Rc4 {[%clk 0:00:23.5]} 34. a5 {[%clk
0:00:19.4]} 34... Ra4 {[%clk 0:00:23.9]} 35. Bc7 {[%clk 0:00:20.5]} 1-0

[Event "*** Titled Tuesday Blitz"]
[Site "Chess.com"]
[Date "2019.06.04"]
[Round "5"]
[White "Sebastian"]
[Black "vovachesss"]
[Result "1-0"]
[WhiteElo "2891"]
[BlackElo "2621"]
[TimeControl "180+2"]
[EndTime "14:06:39 PDT"]
[Termination "Sebastian won by resignation"]

1. e4 {[%clk 0:03:00.4]} 1... c6 {[%clk 0:02:57]} 2. d4 {[%clk 0:03:01.1]} 2...
g6 {[%clk 0:02:58]} 3. Nc3 {[%clk 0:03:00.5]} 3... Bg7 {[%clk 0:02:59.5]} 4. Nf3
{[%clk 0:03:01.5]} 4... d5 {[%clk 0:03:00.3]} 5. h3 {[%clk 0:03:02.5]} 5... dxe4
{[%clk 0:03:00.5]} 6. Nxe4 {[%clk 0:03:02.4]} 6... Nf6 {[%clk 0:03:02.1]} 7. Nc5
{[%clk 0:02:54.7]} 7... O-O {[%clk 0:02:59.7]} 8. Be2 {[%clk 0:02:55.4]} 8...
Nbd7 {[%clk 0:02:55.3]} 9. Nd3 {[%clk 0:02:56.1]} 9... b6 {[%clk 0:02:52.3]} 10.
O-O {[%clk 0:02:56.4]} 10... Bb7 {[%clk 0:02:53.5]} 11. c4 {[%clk 0:02:48.9]}
11... e6 {[%clk 0:02:41.2]} 12. Be3 {[%clk 0:02:49]} 12... Qe7 {[%clk
0:02:41.8]} 13. b4 {[%clk 0:02:33]} 13... c5 {[%clk 0:02:14]} 14. dxc5 {[%clk
0:02:30]} 14... e5 {[%clk 0:02:15.3]} 15. Nd2 {[%clk 0:02:00.4]} 15... e4 {[%clk
0:02:14.5]} 16. Nf4 {[%clk 0:02:00.6]} 16... bxc5 {[%clk 0:02:15.3]} 17. b5
{[%clk 0:02:00.4]} 17... Ne5 {[%clk 0:02:12.6]} 18. Qc2 {[%clk 0:01:56.1]} 18...
Rac8 {[%clk 0:02:05.1]} 19. Rad1 {[%clk 0:01:45.1]} 19... Rfd8 {[%clk
0:01:51.5]} 20. a4 {[%clk 0:01:26.5]} 20... g5 {[%clk 0:01:16]} 21. Nd5 {[%clk
0:01:20.3]} 21... Nxd5 {[%clk 0:01:17.6]} 22. cxd5 {[%clk 0:01:21.7]} 22... f5
{[%clk 0:01:19.4]} 23. Nc4 {[%clk 0:01:20.7]} 23... f4 {[%clk 0:01:07.5]} 24. d6
{[%clk 0:01:21.7]} 24... Qf6 {[%clk 0:00:53.9]} 25. Nxe5 {[%clk 0:00:44]} 25...
Qxe5 {[%clk 0:00:55]} 26. Bc4+ {[%clk 0:00:38.5]} 26... Kh8 {[%clk 0:00:55.9]}
27. Bc1 {[%clk 0:00:40.1]} 27... Rxd6 {[%clk 0:00:54]} 28. Bb2 {[%clk 0:00:27]}
28... Rd4 {[%clk 0:00:46]} 29. Bxd4 {[%clk 0:00:27.8]} 29... cxd4 {[%clk
0:00:47.1]} 30. Qb3 {[%clk 0:00:29.6]} 30... e3 {[%clk 0:00:40.6]} 31. Be2
{[%clk 0:00:21]} 31... f3 {[%clk 0:00:32]} 32. gxf3 {[%clk 0:00:15.5]} 32... Rc3
{[%clk 0:00:21.9]} 33. Qf7 {[%clk 0:00:15.3]} 33... Rc2 {[%clk 0:00:15.3]} 34.
Rxd4 {[%clk 0:00:15.5]} 34... exf2+ {[%clk 0:00:12.3]} 35. Kg2 {[%clk
0:00:14.3]} 35... h6 {[%clk 0:00:08]} 36. Rd8+ {[%clk 0:00:14.3]} 36... Kh7
{[%clk 0:00:08.7]} 37. Bd3+ {[%clk 0:00:15.9]} 37... Be4 {[%clk 0:00:09.6]} 38.
Bxe4+ {[%clk 0:00:17.2]} 38... Qxe4 {[%clk 0:00:10.2]} 39. fxe4 {[%clk
0:00:18.6]} 1-0

[Event "*** Titled Tuesday Blitz"]
[Site "Chess.com"]
[Date "2019.06.04"]
[Round "5"]
[White "NicoChasin"]
[Black "Joseph_Truelson"]
[Result "1/2-1/2"]
[WhiteElo "2488"]
[BlackElo "2283"]
[TimeControl "180+2"]
[EndTime "14:06:43 PDT"]
[Termination "Game drawn by repetition"]

1. e4 {[%clk 0:02:57.3]} 1... e5 {[%clk 0:02:57.3]} 2. Nf3 {[%clk 0:02:50.9]}
2... Nc6 {[%clk 0:02:57.7]} 3. Bc4 {[%clk 0:02:50.2]} 3... Nf6 {[%clk
0:02:55.7]} 4. d3 {[%clk 0:02:48.5]} 4... h6 {[%clk 0:02:55.6]} 5. O-O {[%clk
0:02:48.6]} 5... d6 {[%clk 0:02:54.4]} 6. a4 {[%clk 0:02:49.6]} 6... g5 {[%clk
0:02:55.3]} 7. c3 {[%clk 0:02:34.9]} 7... Be7 {[%clk 0:02:45.1]} 8. Nbd2 {[%clk
0:02:30.4]} 8... O-O {[%clk 0:02:40.9]} 9. a5 {[%clk 0:02:28.3]} 9... Kh8 {[%clk
0:02:40.8]} 10. b4 {[%clk 0:02:22.1]} 10... a6 {[%clk 0:02:38.6]} 11. Ne1 {[%clk
0:02:18.4]} 11... Nh7 {[%clk 0:02:32.8]} 12. Qh5 {[%clk 0:02:17.2]} 12... Kg7
{[%clk 0:02:32.5]} 13. Nc2 {[%clk 0:02:18.4]} 13... f5 {[%clk 0:02:33.4]} 14.
exf5 {[%clk 0:02:17.8]} 14... Bxf5 {[%clk 0:02:35.3]} 15. Ne3 {[%clk 0:02:18.8]}
15... Bg6 {[%clk 0:02:29.2]} 16. Qe2 {[%clk 0:02:17.3]} 16... Nf6 {[%clk
0:02:22.5]} 17. Nd5 {[%clk 0:02:16.6]} 17... Nxd5 {[%clk 0:02:23.5]} 18. Bxd5
{[%clk 0:02:18.5]} 18... Bf6 {[%clk 0:02:25]} 19. Ne4 {[%clk 0:02:18.3]} 19...
Qc8 {[%clk 0:02:21.2]} 20. Bb2 {[%clk 0:01:55.4]} 20... Ne7 {[%clk 0:02:20.1]}
21. Bb3 {[%clk 0:01:55.6]} 21... Qd7 {[%clk 0:01:53.5]} 22. c4 {[%clk
0:01:54.1]} 22... Nc6 {[%clk 0:01:53.2]} 23. Bc3 {[%clk 0:01:52.7]} 23... Rae8
{[%clk 0:01:51.4]} 24. f3 {[%clk 0:01:48.2]} 24... Nd4 {[%clk 0:01:51.6]} 25.
Qb2 {[%clk 0:01:45.1]} 25... Nxb3 {[%clk 0:01:34.4]} 26. Qxb3 {[%clk 0:01:47]}
26... c6 {[%clk 0:01:25.3]} 27. Rae1 {[%clk 0:01:30.8]} 27... Bxe4 {[%clk
0:01:25.2]} 28. fxe4 {[%clk 0:01:31]} 28... Kg6 {[%clk 0:01:22.8]} 29. Rf5
{[%clk 0:01:30.8]} 29... Be7 {[%clk 0:01:18.2]} 30. Ref1 {[%clk 0:01:30.4]}
30... Rxf5 {[%clk 0:01:19.4]} 31. Rxf5 {[%clk 0:01:31.9]} 31... Rf8 {[%clk
0:01:20.3]} 32. g4 {[%clk 0:01:30.7]} 32... Rxf5 {[%clk 0:01:16.5]} 33. gxf5+
{[%clk 0:01:30.8]} 33... Kg7 {[%clk 0:01:10.5]} 34. Qd1 {[%clk 0:01:28.5]} 34...
Bf6 {[%clk 0:01:06.1]} 35. Qh5 {[%clk 0:01:27.9]} 35... Qf7 {[%clk 0:01:05.6]}
36. Qxf7+ {[%clk 0:01:28.3]} 36... Kxf7 {[%clk 0:01:07.5]} 37. Kf2 {[%clk
0:01:28.6]} 37... h5 {[%clk 0:01:01.3]} 38. h3 {[%clk 0:01:28.6]} 38... Ke7
{[%clk 0:00:59.5]} 39. Kg3 {[%clk 0:01:29.5]} 39... d5 {[%clk 0:00:57.6]} 40. c5
{[%clk 0:00:56.7]} 40... dxe4 {[%clk 0:00:39.1]} 41. dxe4 {[%clk 0:00:55.8]}
41... Bg7 {[%clk 0:00:40.4]} 42. Bd2 {[%clk 0:00:52.5]} 42... Bf6 {[%clk
0:00:32.1]} 43. h4 {[%clk 0:00:45.8]} 43... g4 {[%clk 0:00:15]} 44. Bg5 {[%clk
0:00:42]} 44... Kf7 {[%clk 0:00:15.8]} 45. Bd2 {[%clk 0:00:40.8]} 45... Ke7
{[%clk 0:00:16.8]} 46. Bc3 {[%clk 0:00:41.9]} 46... Kf7 {[%clk 0:00:17.8]} 47.
Bd2 {[%clk 0:00:40.6]} 47... Ke7 {[%clk 0:00:18.9]} 1/2-1/2